bitfinex/quotes_ETHUSD_20240921
["timestamp","ask_amount","ask_price","bid_price","bid_amount"]
[1726915936684,1.13800084,2549.4,2549.3,1.76713071]
[1726915936863,1.81237377,2549.4,2549.3,1.76713071]
[1726915937067,1.81132385,2549.4,2549.3,1.76713071]
[1726915937372,1.13695092,2549.4,2549.3,1.76713071]
[1726915942342,0.3041,2549.4,2549.3,1.76713071]
[1726915943483,1.1358739,2549.4,2549.3,1.76713071]
[1726915943849,0.3041,2549.4,2549.3,1.76713071]
[1726915947152,1.13589418,2549.4,2549.3,1.76713071]
[1726915947351,0.97826238,2549.4,2549.3,1.76713071]
[1726915948164,1.810325,2549.4,2549.3,1.76713071]
[1726915948364,0.97826238,2549.4,2549.3,1.76713071]
[1726915950387,1.81037041,2549.4,2549.3,1.76713071]
[1726915950754,0.97826238,2549.4,2549.3,1.76713071]
[1726915951666,1.81039709,2549.4,2549.3,1.76713071]
[1726915952494,1.81039709,2549.4,2549.3,0.0375727]
[1726915952799,1.9084689,2549.4,2549.3,1.76713071]
[1726915953098,1.81075489,2549.4,2549.3,1.76713071]
[1726915955191,3.87943235,2549.4,2549.3,1.76713071]
[1726915956191,3.87959459,2549.4,2549.3,1.76713071]
[1726915961180,3.97645441,2549.4,2549.3,1.76713071]
[1726915961378,3.97604722,2549.4,2549.3,1.76713071]
[1726915961882,3.15654707,2549.4,2549.3,1.76713071]
[1726915962500,4.38781928,2549.4,2549.3,1.76713071]
[1726915965886,4.38918365,2549.4,2549.3,1.76713071]
[1726915966531,6.46260487,2549.4,2549.3,0.0375727]
[1726915966769,6.46260487,2549.4,2549.3,1.24195773]
[1726915967426,4.82310482,2549.4,2549.3,1.24195773]
[1726915968429,6.87296394,2549.4,2549.3,1.24195773]
[1726915975405,6.87449823,2549.4,2549.3,1.24195773]
[1726915980549,6.87330516,2549.4,2548.6,5.4617]
[1726915980718,1.07633747,2549.4,2549.3,1.72955801]
[1726915980906,6.19862706,2549.4,2549.3,1.72955801]
[1726915986146,6.19862706,2549.4,2549.3,2.22955801]
[1726915987839,6.10055197,2549.4,2549.3,2.22955801]
[1726915988048,6.19862988,2549.4,2549.3,2.22955801]
[1726915988345,6.19863003,2549.4,2549.3,2.22955801]
[1726915988537,6.19442339,2549.4,2549.3,2.22955801]
[1726915988716,6.09634533,2549.4,2549.3,2.22955801]
[1726915988936,6.19442317,2549.4,2549.3,2.22955801]
[1726915989615,6.09634533,2549.4,2549.3,2.22955801]
[1726915989957,6.1944232,2549.4,2549.3,2.22955801]
[1726915990157,6.1944232,2549.4,2549.3,2.72955801]
[1726915990515,7.6132796,2549.4,2549.3,1.0]
[1726915990730,5.56261589,2549.4,2549.3,2.72955801]
[1726915990972,6.19448211,2549.4,2549.3,2.72955801]
[1726915991137,4.14375949,2549.4,2549.3,2.72955801]
[1726915991334,6.19446308,2549.4,2549.3,2.72955801]
[1726915992586,6.40724193,2549.4,2549.3,2.72955801]
[1726915992734,4.35653834,2549.4,2549.3,2.72955801]
[1726915992931,5.23494253,2549.4,2549.3,2.72955801]
[1726915993175,3.15807932,2549.4,2549.3,2.72955801]
[1726915993349,5.234982,2549.4,2549.3,2.72955801]
[1726915993554,6.87558969,2549.4,2549.3,2.72955801]
[1726915994133,6.87558969,2549.4,2549.3,3.22955801]
[1726915994347,5.234982,2549.4,2549.3,3.22955801]
[1726915994675,7.28567819,2549.4,2549.3,3.22955801]
[1726915998061,7.2813304,2549.4,2549.3,3.22955801]
[1726915998269,7.2813304,2549.4,2549.3,3.72955801]
[1726916000679,7.28174555,2549.4,2549.3,3.72955801]
[1726916000977,5.23025874,2549.4,2549.3,3.72955801]
[1726916001845,7.2818767,2549.4,2549.3,3.72955801]
[1726916002387,7.2818767,2549.4,2549.3,4.22955801]
[1726916002747,5.22592528,2549.4,2549.3,4.22955801]
[1726916003074,7.27765918,2549.4,2549.3,4.22955801]
[1726916003665,5.22592528,2549.4,2549.3,4.22955801]
[1726916003844,7.27802127,2549.4,2549.3,4.22955801]
[1726916005143,5.22592528,2549.4,2549.3,4.22955801]
[1726916006258,7.27819344,2549.4,2549.3,4.22955801]
[1726916006452,5.22592528,2549.4,2549.3,4.22955801]
[1726916007697,5.22184522,2549.4,2549.3,4.22955801]
[1726916009752,7.65644522,2549.4,2549.3,4.22955801]
[1726916009953,7.7545195,2549.4,2549.3,4.22955801]
[1726916012012,7.65644522,2549.4,2549.3,4.22955801]
[1726916012495,7.65783685,2549.4,2549.3,4.22955801]
[1726916012868,9.72294522,2549.4,2549.3,4.22955801]
[1726916013687,12.18758871,2549.4,2549.3,4.22955801]
[1726916013882,5.22323685,2549.4,2549.3,4.22955801]
[1726916017276,5.21956627,2549.4,2549.3,4.22955801]
[1726916025633,7.28128554,2549.4,2549.3,4.22955801]
[1726916026339,5.21956627,2549.4,2549.3,4.22955801]
[1726916027029,5.2198479,2549.4,2549.3,4.22955801]
[1726916027394,7.37961464,2549.4,2549.3,4.22955801]
[1726916027594,9.8442293,2549.4,2549.3,4.22955801]
[1726916027850,9.74615576,2549.4,2549.3,4.22955801]
[1726916028135,5.2198479,2549.4,2549.3,4.22955801]
[1726916031222,5.31792128,2549.4,2549.3,4.22955801]
[1726916031538,7.68446256,2549.4,2549.3,4.22955801]
[1726916031836,3.15807932,2549.4,2549.3,4.22955801]
[1726916032036,7.68434779,2549.4,2549.3,4.22955801]
[1726916032205,5.21979522,2549.4,2549.3,4.22955801]
[1726916032406,7.68434779,2549.4,2549.3,4.22955801]
[1726916032638,5.21979522,2549.4,2549.3,4.22955801]
[1726916036726,5.21616915,2549.4,2549.3,4.22955801]
[1726916037244,7.27425769,2549.4,2549.3,4.22955801]
[1726916038252,7.27423025,2549.4,2549.3,4.22955801]
[1726916038858,5.21616915,2549.4,2549.3,4.22955801]
[1726916039650,7.27436616,2549.4,2549.3,4.22955801]
[1726916040457,7.2743655,2549.4,2549.3,4.22955801]
[1726916042351,9.73935853,2549.4,2549.3,4.22955801]
[1726916042733,7.2743655,2549.4,2549.3,4.22955801]
[1726916044258,5.21616915,2549.4,2549.3,4.22955801]
[1726916045262,5.21054243,2549.4,2549.3,4.22955801]
[1726916048941,3.97906456,2549.4,2549.3,4.22955801]
[1726916049340,3.15807932,2549.4,2549.3,4.22955801]
[1726916050671,4.33345448,2549.4,2549.3,4.22955801]
[1726916052573,4.33345448,2549.4,2549.3,1.72955801]
[1726916052871,4.33345448,2549.4,2549.3,2.22955801]
[1726916053570,4.33352879,2549.4,2549.3,2.22955801]
[1726916054233,4.33352879,2549.4,2549.3,4.50645801]
[1726916054437,5.21877129,2549.4,2549.3,4.50645801]
[1726916056969,5.21877129,2549.4,2549.3,5.00645801]
[1726916059500,5.21964513,2549.4,2549.3,5.00645801]
[1726916060958,5.21964513,2549.4,2549.3,5.50645801]
[1726916061584,7.27369984,2549.4,2549.3,5.50645801]
[1726916061742,6.38845734,2549.4,2549.3,5.50645801]
[1726916061958,1.64336858,2549.4,2549.3,5.50645801]
[1726916062373,1.23225186,2549.4,2549.3,5.64825801]
[1726916062572,1.23224069,2549.4,2549.3,5.64825801]
[1726916063278,1.23224069,2549.5,2549.3,3.22955801]
[1726916063445,4.68871853,2549.5,2549.4,2.4187]
[1726916068057,3.45647784,2549.5,2549.4,2.4187]
[1726916068275,4.68871853,2549.5,2549.4,2.4187]
[1726916069381,4.27717383,2549.5,2549.4,2.4187]
[1726916070276,3.45647784,2549.5,2549.4,2.4187]
[1726916070482,4.68871853,2549.5,2549.4,2.4187]
[1726916070903,3.45647784,2549.5,2549.4,2.4187]
[1726916071108,4.68871853,2549.5,2549.4,2.4187]
[1726916071481,3.45647784,2549.5,2549.4,2.4187]
[1726916072018,4.66017006,2549.5,2549.4,2.4187]
[1726916072418,5.89241075,2549.5,2549.4,2.4187]
[1726916072803,5.48072043,2549.5,2549.4,2.4187]
[1726916073345,4.66017006,2549.5,2549.4,2.4187]
[1726916073519,5.48071618,2549.5,2549.4,2.4187]
[1726916073888,4.27702396,2549.5,2549.4,2.4187]
[1726916074089,5.48064275,2549.5,2549.4,2.4187]
[1726916078732,5.48033622,2549.5,2549.4,2.4187]
[1726916081928,6.28247789,2549.5,2549.4,2.4187]
[1726916083813,6.28242246,2549.5,2549.4,2.4187]
[1726916084644,2.82594462,2549.5,2549.4,2.4187]
[1726916087754,2.0053985,2549.5,2549.4,2.4187]
[1726916088178,2.82594462,2549.5,2549.4,2.4187]
[1726916088673,2.82606617,2549.5,2549.4,2.4187]
[1726916093033,2.82632613,2549.5,2549.4,2.4187]
[1726916093232,2.82635984,2549.5,2549.4,2.4187]
[1726916093430,2.82815989,2549.5,2549.4,2.4187]
[1726916095428,2.0073187,2549.5,2549.4,2.4187]
[1726916095834,2.82829481,2549.5,2549.4,2.4187]
[1726916096557,2.0073187,2549.5,2549.4,2.4187]
[1726916096919,3.23955939,2549.5,2549.4,2.4187]
[1726916098047,2.0073187,2549.5,2549.4,2.4187]
[1726916098387,2.00768227,2549.5,2549.4,2.4187]
[1726916098951,2.82880264,2549.5,2549.4,2.4187]
[1726916099152,2.00768227,2549.5,2549.4,2.4187]
[1726916099550,2.82883886,2549.5,2549.4,2.4187]
[1726916100068,2.82882356,2549.5,2549.4,2.4187]
[1726916101068,2.00768227,2549.5,2549.4,2.4187]
[1726916101270,3.23992296,2549.5,2549.4,2.4187]
[1726916101562,2.00768227,2549.5,2549.4,2.4187]
[1726916101768,2.00842665,2549.5,2549.4,2.4187]
[1726916101977,2.8297982,2549.5,2549.4,2.4187]
[1726916102281,2.82988894,2549.5,2549.4,2.4187]
[1726916102566,2.00842665,2549.5,2549.4,2.4187]
[1726916103267,3.24066734,2549.5,2549.4,2.4187]
[1726916106560,0.82193735,2549.5,2549.4,6.0835258]
[1726916106769,0.82193735,2549.6,2549.5,3.0]
[1726916106929,0.82193735,2549.6,2549.5,4.72955801]
[1726916108769,17.9595376,2549.7,2549.5,4.72955801]
[1726916110132,0.82196032,2549.6,2549.5,4.72955801]
[1726916111393,17.9595376,2549.7,2549.5,4.72955801]
[1726916111597,0.82181194,2549.6,2549.5,4.72955801]
[1726916112189,17.9595376,2549.7,2549.5,4.72955801]
[1726916112390,0.82185429,2549.6,2549.5,4.72955801]
[1726916112703,17.9595376,2549.7,2549.5,4.72955801]
[1726916112868,20.22749127,2549.7,2549.5,1.72955801]
[1726916113499,18.22749127,2549.7,2549.5,1.72955801]
[1726916115508,1.23262409,2549.6,2549.5,1.72955801]
[1726916116564,2.41527198,2549.6,2549.5,1.72955801]
[1726916117973,1.18264789,2549.6,2549.5,1.72955801]
[1726916118174,2.41527198,2549.6,2549.5,1.72955801]
[1726916119066,1.18264789,2549.6,2549.5,1.72955801]
[1726916119306,2.41527198,2549.6,2549.5,1.72955801]
[1726916121208,2.41266085,2549.6,2549.5,1.72955801]
[1726916121565,2.41266085,2549.6,2549.4,0.5]
[1726916121761,4.81256085,2549.5,2549.4,0.5]
[1726916123703,4.81256085,2549.5,2549.4,1.0]
[1726916124208,1.6435074,2549.6,2549.5,3.0]
[1726916124412,5.2209621,2549.6,2549.5,3.32994954]
[1726916124716,3.5774547,2549.6,2549.5,3.32994954]
[1726916124903,0.87996792,2549.6,2549.5,3.32994954]
[1726916125107,2.43783729,2549.6,2549.5,3.32994954]
[1726916126605,18.01379287,2549.7,2549.5,3.32994954]
[1726916126784,19.85344397,2549.7,2549.6,1.72955801]
[1726916127125,19.9650887,2549.7,2549.6,1.72955801]
[1726916127678,19.9650887,2549.7,2549.6,2.05950414]
[1726916127890,19.9650887,2549.7,2549.6,1.72955801]
[1726916128519,17.7991887,2549.7,2549.6,1.72955801]
[1726916128721,14.1042869,2549.7,2549.6,2.05950488]
[1726916129583,10.02294221,2549.7,2549.6,2.05950488]
[1726916132045,10.02294221,2549.7,2549.6,1.72955801]
[1726916132330,10.02294221,2549.7,2549.6,2.05951054]
[1726916133826,11.25557714,2549.7,2549.6,2.05951054]
[1726916134031,12.40895625,2549.7,2549.6,2.05951054]
[1726916134898,11.17632132,2549.7,2549.6,2.05951054]
[1726916135498,11.66646106,2549.7,2549.6,1.72955801]
[1726916135726,12.71418801,2549.7,2549.6,2.05951179]
[1726916136037,12.40902892,2549.7,2549.6,2.55951179]
[1726916136947,14.35616681,2549.7,2549.6,2.55951179]
[1726916137113,12.71264796,2549.7,2549.6,2.55951179]
[1726916137632,14.35616681,2549.7,2549.6,2.55951179]
[1726916137841,12.71264796,2549.7,2549.6,2.55951179]
[1726916138133,12.40898557,2549.7,2549.6,2.55951179]
[1726916138924,14.35724818,2549.7,2549.6,2.22955801]
[1726916139643,14.35724818,2549.7,2549.6,2.55951543]
[1726916139998,12.71372933,2549.7,2549.6,2.55951543]
[1726916140542,14.35694629,2549.7,2549.6,2.55951543]
[1726916140736,12.71342744,2549.7,2549.6,2.55951543]
[1726916141035,14.35694629,2549.7,2549.6,2.55951543]
[1726916142142,14.35694629,2549.7,2549.6,2.55833733]
[1726916142307,16.25294656,2549.7,2549.6,2.55833733]
[1726916142513,16.25294656,2549.7,2549.6,2.22837991]
[1726916144940,16.25294342,2549.7,2549.6,2.22837991]
[1726916145447,16.25294714,2549.7,2549.6,2.22837991]
[1726916148444,14.35694687,2549.7,2549.6,2.22837991]
[1726916150351,14.35762127,2549.7,2549.6,2.22837991]
[1726916155158,14.35462471,2549.7,2549.6,2.22837991]
[1726916157839,14.35497242,2549.7,2549.6,2.22837991]
[1726916159286,16.9317111,2549.7,2549.6,0.5]
[1726916159484,16.9317111,2549.7,2549.4,5.0]
[1726916159485,2.1659,2549.5,2549.4,2.0]
[1726916159776,7.00629519,2549.5,2549.4,3.22955801]
[1726916160009,6.90832861,2549.5,2549.4,3.22955801]
[1726916160363,4.85417833,2549.5,2549.4,3.22955801]
[1726916160566,8.88054402,2549.5,2549.4,3.22955801]
[1726916162509,8.46892644,2549.5,2549.4,3.22955801]
[1726916162692,8.46838629,2549.5,2549.4,3.22955801]
[1726916163069,8.46838473,2549.5,2549.4,3.22955801]
[1726916163267,8.46839299,2549.5,2549.4,3.22955801]
[1726916164006,6.8258223,2549.5,2549.4,3.22955801]
[1726916164373,8.46805336,2549.5,2549.4,3.22955801]
[1726916168112,8.46747586,2549.5,2549.4,3.22955801]
[1726916173163,8.46798163,2549.5,2549.4,3.22955801]
[1726916173539,6.82575057,2549.5,2549.4,3.22955801]
[1726916173726,8.46798163,2549.5,2549.4,3.22955801]
[1726916174225,6.30208163,2549.5,2549.4,3.22955801]
[1726916174427,4.65985057,2549.5,2549.4,3.22955801]
[1726916174627,4.35333073,2549.5,2549.4,3.22955801]
[1726916174928,4.65606447,2549.5,2549.4,3.22955801]
[1726916175138,4.65606512,2549.5,2549.4,3.22955801]
[1726916175350,4.35331923,2549.5,2549.4,3.22955801]
[1726916175555,4.65604925,2549.5,2549.4,3.22955801]
[1726916175756,4.65603892,2549.5,2549.4,3.22955801]
[1726916176065,6.29826998,2549.5,2549.4,3.22955801]
[1726916176260,4.65603892,2549.5,2549.4,3.22955801]
[1726916177073,4.35329891,2549.5,2549.4,3.22955801]
[1726916177226,4.65655097,2549.5,2549.4,3.22955801]
[1726916177427,4.35327485,2549.5,2549.4,3.22955801]
[1726916177963,4.65675527,2549.5,2549.4,3.22955801]
[1726916178144,6.29898633,2549.5,2549.4,3.22955801]
[1726916179007,4.65675527,2549.5,2549.4,3.22955801]
[1726916179911,6.29898633,2549.5,2549.4,3.22955801]
[1726916180981,4.65675527,2549.5,2549.4,3.22955801]
[1726916181951,6.29898633,2549.5,2549.4,3.22955801]
[1726916182667,6.29659846,2549.5,2549.4,3.22955801]
[1726916183185,4.6543674,2549.5,2549.4,3.22955801]
[1726916183561,6.29659846,2549.5,2549.4,3.22955801]
[1726916183764,4.6543674,2549.5,2549.4,3.22955801]
[1726916184278,6.29659846,2549.5,2549.4,3.22955801]
[1726916186089,6.29659846,2549.5,2549.4,1.72955801]
[1726916186309,6.29659846,2549.5,2549.4,2.22955801]
[1726916187515,6.29705128,2549.5,2549.4,2.22955801]
[1726916190286,6.29705128,2549.5,2549.4,2.72955801]
[1726916194535,6.29705128,2549.5,2549.4,3.22955801]
[1726916194690,4.32488982,2549.5,2549.4,3.22955801]
[1726916195940,2.05303026,2549.6,2549.5,5.2841]
[1726916196091,10.02294221,2549.7,2549.6,2.2841]
[1726916196290,10.02294221,2549.7,2549.6,4.01365801]
[1726916200141,10.02294221,2549.7,2549.6,7.01365801]
[1726916221577,10.02294221,2549.7,2549.6,1.72955801]
[1726916221757,11.14558695,2549.7,2549.6,1.72955801]
[1726916222985,13.31148695,2549.7,2549.5,3.0]
[1726916223304,14.13227396,2549.7,2549.6,1.72955801]
[1726916223444,15.25530074,2549.7,2549.6,1.72955801]
[1726916223886,14.43451373,2549.7,2549.6,1.72955801]
[1726916224084,15.66577623,2549.7,2549.6,1.72955801]
[1726916224487,15.66563208,2549.7,2549.6,1.72955801]
[1726916229128,14.54274945,2549.7,2549.6,1.72955801]
[1726916229338,15.66276722,2549.7,2549.6,1.72955801]
[1726916231896,15.92511231,2549.7,2549.6,1.72955801]
[1726916233494,15.92526796,2549.7,2549.6,1.72955801]
[1726916234107,15.92558185,2549.7,2549.6,1.72955801]
[1726916234514,17.56733887,2549.7,2549.6,1.72955801]
[1726916234849,15.92558185,2549.7,2549.6,1.72955801]
[1726916235212,17.56733887,2549.7,2549.6,1.72955801]
[1726916243842,15.39913681,2549.7,2549.6,1.72955801]
[1726916244136,13.75737979,2549.7,2549.6,1.72955801]
[1726916244544,15.39913681,2549.7,2549.6,1.72955801]
[1726916248842,15.39614501,2549.7,2549.6,1.72955801]
[1726916249351,17.56204501,2549.7,2549.6,1.72955801]
[1726916252951,17.56204501,2549.7,2549.6,0.5]
[1726916253111,17.56204501,2549.7,2549.6,2.22955801]
[1726916253445,16.44700721,2549.7,2549.6,2.22955801]
[1726916253656,17.56219116,2549.7,2549.6,2.22955801]
[1726916256952,17.56219116,2549.7,2549.6,2.72955801]
[1726916257465,15.92043414,2549.7,2549.6,2.72955801]
[1726916257607,17.97326121,2549.7,2549.6,2.72955801]
[1726916258446,17.97362159,2549.7,2549.6,2.72955801]
[1726916260128,15.9205628,2549.7,2549.6,2.72955801]
[1726916260363,17.97384372,2549.7,2549.6,2.72955801]
[1726916260555,17.97384372,2549.7,2549.6,2.70543318]
[1726916260710,15.92064019,2549.7,2549.6,2.25288233]
[1726916261111,15.92064019,2549.7,2549.6,2.75288233]
[1726916261345,15.92064019,2549.7,2549.6,2.71742713]
[1726916261565,0.55,2549.6,2549.0,2.4375]
[1726916261791,0.82126096,2549.1,2549.0,2.4375]
[1726916262000,1.93665096,2549.1,2549.0,7.16705801]
[1726916262213,1.93664343,2549.1,2549.0,7.16705801]
[1726916262865,1.11538247,2549.1,2549.0,7.16705801]
[1726916263046,1.23189145,2549.2,2549.0,7.16705801]
[1726916263249,1.11526152,2549.1,2549.0,7.16705801]
[1726916263458,1.93639839,2549.1,2549.0,7.16705801]
[1726916263885,1.93639839,2549.1,2549.0,7.4969358]
[1726916264679,1.93639839,2549.1,2549.0,7.16705801]
[1726916266951,1.93639839,2549.1,2549.0,1.72955801]
[1726916267958,1.93622471,2549.1,2549.0,1.72955801]
[1726916274995,1.93622471,2549.1,2549.0,4.16705801]
[1726916275786,0.82113687,2549.2,2549.0,4.16705801]
[1726916275983,0.82113687,2549.2,2549.1,1.72955801]
[1726916276188,1.93584419,2549.2,2549.1,1.72955801]
[1726916276383,1.1151751,2549.2,2549.1,1.72955801]
[1726916277139,1.93581857,2549.2,2549.1,1.72955801]
[1726916277491,0.82064347,2549.2,2549.1,1.72955801]
[1726916277717,1.93577613,2549.2,2549.1,1.72955801]
[1726916278027,1.11513266,2549.2,2549.1,1.72955801]
[1726916278391,1.93573617,2549.2,2549.1,1.72955801]
[1726916278824,1.11513266,2549.2,2549.1,1.72955801]
[1726916279029,1.93574735,2549.2,2549.1,1.72955801]
[1726916281203,1.93678243,2549.2,2549.1,1.72955801]
[1726916286148,1.933655,2549.2,2549.1,1.72955801]
[1726916287241,2.42426948,2549.2,2549.1,1.72955801]
[1726916288251,1.60365479,2549.2,2549.1,1.72955801]
[1726916288428,2.42454012,2549.2,2549.1,1.72955801]
[1726916290315,2.42456608,2549.2,2549.1,1.72955801]
[1726916290511,1.60365479,2549.2,2549.1,1.72955801]
[1726916290755,0.49061448,2549.2,2549.1,1.72955801]
[1726916290952,2.4252227,2549.2,2549.1,1.72955801]
[1726916292332,1.93460822,2549.2,2549.1,1.72955801]
[1726916294163,1.93163036,2549.2,2549.1,1.72955801]
[1726916294670,0.82095628,2549.3,2549.2,2.251]
[1726916294854,0.82095628,2549.4,2549.2,2.251]
[1726916295038,0.82095628,2549.4,2549.3,1.72955801]
[1726916295244,1.93180877,2549.4,2549.3,1.72955801]
[1726916295769,1.93182879,2549.4,2549.3,1.72955801]
[1726916296830,1.93208895,2549.4,2549.3,1.72955801]
[1726916300511,1.93232286,2549.4,2549.3,1.72955801]
[1726916305405,0.82121644,2549.4,2549.3,1.72955801]
[1726916305566,1.93204774,2549.4,2549.3,1.72955801]
[1726916306910,1.93230464,2549.4,2549.3,1.72955801]
[1726916307114,1.1108313,2549.4,2549.3,1.72955801]
[1726916307478,1.93230135,2549.4,2549.3,1.72955801]
[1726916308788,1.1108313,2549.4,2549.3,1.72955801]
[1726916309213,2.34272275,2549.4,2549.3,1.72955801]
[1726916309514,1.93224462,2549.4,2549.3,1.72955801]
[1726916309815,1.1108313,2549.4,2549.3,1.72955801]
[1726916310020,1.93224708,2549.4,2549.3,1.72955801]
[1726916310401,1.93299234,2549.4,2549.3,1.72955801]
[1726916311019,1.93298323,2549.4,2549.3,1.72955801]
[1726916311581,1.11157656,2549.4,2549.3,1.72955801]
[1726916311981,1.93298826,2549.4,2549.3,1.72955801]
[1726916312890,1.11157656,2549.4,2549.3,1.72955801]
[1726916313326,1.93297552,2549.4,2549.3,1.72955801]
[1726916318091,1.11157656,2549.4,2549.3,1.72955801]
[1726916318315,1.93297552,2549.4,2549.3,1.72955801]
[1726916318517,0.82139896,2549.5,2549.3,1.72955801]
[1726916318717,0.82139896,2549.5,2549.4,3.99145801]
[1726916318996,4.61370135,2549.5,2549.4,1.72955801]
[1726916319190,3.3818099,2549.5,2549.4,1.72955801]
[1726916319392,4.61370135,2549.5,2549.4,1.72955801]
[1726916320090,3.38179187,2549.5,2549.4,1.72955801]
[1726916320892,4.20319496,2549.5,2549.4,1.72955801]
[1726916321114,4.61368332,2549.5,2549.4,1.72955801]
[1726916322235,3.38179187,2549.5,2549.4,1.72955801]
[1726916322699,4.20322737,2549.5,2549.4,1.72955801]
[1726916323091,4.61368332,2549.5,2549.4,1.72955801]
[1726916324212,3.38179187,2549.5,2549.4,1.72955801]
[1726916325223,4.61062018,2549.5,2549.4,1.72955801]
[1726916325948,3.37872873,2549.5,2549.4,1.72955801]
[1726916327071,4.61062018,2549.5,2549.4,1.72955801]
[1726916330007,4.61081513,2549.5,2549.4,1.72955801]
[1726916333560,4.85727627,2549.5,2549.4,1.72955801]
[1726916334463,4.6115915,2549.5,2549.4,1.72955801]
[1726916334972,4.61259341,2549.5,2549.4,1.72955801]
[1726916335319,6.50103419,2549.5,2549.4,1.72955801]
[1726916336137,4.85851226,2549.5,2549.4,1.72955801]
[1726916336462,6.50103419,2549.5,2549.4,1.72955801]
[1726916336855,4.85851226,2549.5,2549.4,1.72955801]
[1726916337427,6.50103419,2549.5,2549.4,1.72955801]
[1726916339931,6.50252065,2549.5,2549.4,1.72955801]
[1726916343269,6.50273921,2549.5,2549.4,1.72955801]
[1726916344274,4.86021728,2549.5,2549.4,1.72955801]
[1726916344492,6.50526477,2549.5,2549.4,1.72955801]
[1726916347680,4.86021728,2549.5,2549.4,1.72955801]
[1726916348130,4.86019662,2549.5,2549.4,1.72955801]
[1726916348289,6.91644735,2549.5,2549.4,1.72955801]
[1726916348443,6.50514158,2549.5,2549.4,1.72955801]
[1726916348894,6.50478009,2549.5,2549.4,1.72955801]
[1726916349681,6.50461808,2549.5,2549.4,1.72955801]
[1726916350187,6.50472937,2549.5,2549.4,1.72955801]
[1726916351467,4.86019662,2549.5,2549.4,1.72955801]
[1726916351694,6.50470375,2549.5,2549.4,1.72955801]
[1726916353293,4.86019662,2549.5,2549.4,1.72955801]
[1726916353594,6.50472738,2549.5,2549.4,1.72955801]
[1726916354274,5.39405736,2549.5,2549.4,1.72955801]
[1726916355161,3.7495266,2549.5,2549.4,1.72955801]
[1726916356262,4.86025641,2549.5,2549.4,1.72955801]
[1726916356543,6.50473142,2549.5,2549.4,1.72955801]
[1726916359351,5.39400161,2549.5,2549.4,1.72955801]
[1726916364427,3.7495266,2549.5,2549.4,1.72955801]
[1726916374134,4.86052264,2549.5,2549.4,1.72955801]
[1726916375262,6.91651034,2549.5,2549.4,1.72955801]
[1726916375467,4.86052264,2549.5,2549.4,1.72955801]
[1726916375860,6.50531604,2549.5,2549.4,1.72955801]
[1726916376062,4.86052264,2549.5,2549.4,1.72955801]
[1726916376260,2.58958271,2549.5,2549.4,1.72955801]
[1726916379799,4.64557041,2549.5,2549.4,1.72955801]
[1726916380094,2.58958271,2549.5,2549.4,1.72955801]
[1726916380510,1.47858667,2549.5,2549.4,1.72955801]
[1726916380799,2.58961449,2549.5,2549.4,1.72955801]
[1726916381903,4.23439119,2549.5,2549.4,1.72955801]
[1726916382205,4.23445674,2549.5,2549.4,1.72955801]
[1726916382503,2.58961449,2549.5,2549.4,1.72955801]
[1726916383512,7.868,2549.6,2549.4,2.37870381]
[1726916383737,12.07898679,2549.7,2549.4,2.37870381]
[1726916383738,10.02294221,2549.7,2549.5,5.4755]
[1726916384012,0.82247436,2549.6,2549.4,5.37870381]
[1726916384174,10.02294221,2549.7,2549.5,3.87031748]
[1726916384175,7.55594461,2549.7,2549.5,3.87031748]
[1726916384355,7.55594461,2549.7,2549.6,2.4755]
[1726916384555,7.55594461,2549.7,2549.6,4.20505801]
[1726916384760,7.55594461,2549.7,2549.6,5.25046594]
[1726916385908,7.55594461,2549.7,2549.6,8.25046594]
[1726916386341,7.55594461,2549.7,2549.6,8.58034446]
[1726916387070,7.55594461,2549.7,2549.6,8.25046594]
[1726916387368,7.55594461,2549.7,2549.6,8.58025293]
[1726916390469,7.55594461,2549.7,2549.6,8.25046594]
[1726916391177,7.55594461,2549.7,2549.6,8.58003247]
[1726916391384,1.61934922,2549.7,2549.6,8.58003247]
[1726916391970,0.38271813,2549.8,2549.7,5.4755]
[1726916392169,7.37,2550.3,2549.7,6.75010153]
[1726916392360,3.78524922,2550.4,2550.2,1.72955801]
[1726916392554,3.78524922,2550.4,2550.2,0.25955801]
[1726916392879,5.01619056,2550.4,2549.8,2.4755]
[1726916393060,5.01619056,2550.4,2550.3,1.47]
[1726916393368,6.18224001,2550.4,2550.3,0.25955801]
[1726916393775,6.18224001,2550.4,2549.8,2.4755]
[1726916393940,6.18224001,2550.4,2550.3,1.72955801]
[1726916394267,6.18224001,2550.4,2550.3,0.51911601]
[1726916394672,6.18224001,2550.4,2549.8,2.4755]
[1726916394878,6.18224001,2550.4,2550.3,1.210442]
[1726916395076,6.18224001,2550.4,2550.3,0.259558]
[1726916395286,6.18224001,2550.4,2549.8,2.4755]
[1726916395426,6.18224001,2550.4,2550.3,1.47000001]
[1726916395625,4.95129867,2550.4,2550.3,1e-08]
[1726916395877,4.95129867,2550.4,2549.8,2.4755]
[1726916396038,5.01619056,2550.4,2550.3,1.72955801]
[1726916396240,3.78524922,2550.4,2550.3,0.25955801]
[1726916396441,4.60524977,2550.4,2549.8,2.4755]
[1726916396687,0.8199929,2550.3,2549.8,2.4755]
[1726916396831,0.8199929,2550.3,2550.2,1.72955801]
[1726916397043,1.6986435,2550.3,2550.2,1.72955801]
[1726916397230,1.6986435,2550.3,2550.2,1.4457511]
[1726916399273,1.6986435,2550.3,2550.2,1.72955801]
[1726916400675,0.8786506,2550.3,2550.2,1.72955801]
[1726916401052,1.6986435,2550.3,2550.2,1.271181]
[1726916404603,0.8786506,2550.3,2550.2,1.271181]
[1726916405764,1.6986435,2550.3,2550.2,1.271181]
[1726916406215,0.8786506,2550.3,2550.2,1.271181]
[1726916406720,0.8786506,2550.3,2550.2,3.227181]
[1726916409486,1.6986435,2550.3,2550.2,3.227181]
[1726916409703,0.8786506,2550.3,2550.2,3.227181]
[1726916414273,1.6986435,2550.3,2550.2,3.227181]
[1726916415570,1.6986435,2550.3,2550.2,1.956]
[1726916422252,0.8786506,2550.3,2550.2,1.956]
[1726916422620,1.69890113,2550.3,2550.2,1.956]
[1726916422823,0.8786506,2550.3,2550.2,1.956]
[1726916423146,1.69889152,2550.3,2550.2,1.956]
[1726916424263,0.8786506,2550.3,2550.2,1.956]
[1726916425357,2.10959194,2550.3,2550.2,1.956]
[1726916427245,3.94898489,2550.3,2550.2,1.956]
[1726916429347,3.95114999,2550.3,2550.2,1.956]
[1726916430271,3.07268868,2550.3,2550.2,4.252]
[1726916440410,1.42884723,2550.3,2550.2,4.252]
[1726916440613,6.22897945,2550.3,2550.2,4.252]
[1726916443486,4.585138,2550.3,2550.2,4.252]
[1726916443892,6.22897945,2550.3,2550.2,4.252]
[1726916448522,3.07268868,2550.3,2550.2,4.252]
[1726916448912,1.23399153,2550.3,2550.2,7.252]
[1726916449094,0.82268629,2550.3,2550.2,7.252]
[1726916449823,3.86222071,2550.3,2550.2,7.252]
[1726916452812,3.86222071,2550.3,2550.2,7.752]
[1726916454869,3.86222071,2550.3,2550.2,5.456]